[Event "FIDE World Rapid-ch Open 2018"]
[White "Vitiugov, Nikita"]
[Black "Vishnu Prasanna. V"]
[Site "St. Petersburg"]
[Round "11.43"]
[Annotator "ChessBase"]
[Result "0-1"]
[Date "2018.12.28"]
[WhiteElo "2719"]
[BlackElo "2518"]
[PlyCount "156"]
[TimeControl "900+10"]

1. d4 {[%emt 0:0:0]} Nf6 {[%emt 0:0:0]} 2. Nf3 {[%emt 0:0:0]} g6 {[%emt 0:0:0]
} 3. Nc3 {[%emt 0:0:2]} d5 {[%emt 0:0:2]} 4. Bf4 {[%emt 0:0:0]} c6 {[%emt 0:0:35]} 5. e3 {[%emt 0:0:25]} Bg7 {[%emt 0:0:4]} 6. h3 {[%emt 0:0:17]
} Bf5 {[%emt 0:1:47]} 7. g4 {[%emt 0:1:0]} Be4 {[%emt 0:0:47]
} 8. g5 {[%emt 0:0:36]} Bxf3 {[%emt 0:0:49]} 9. Qxf3 {[%emt 0:0:3]} Nh5 {[%emt 0:1:22]
} 10. Bh2 {[%emt 0:0:17]} Nd7 {[%emt 0:0:3]} 11. h4 {[%emt 0:0:0]} e5 {[%emt 0:0:11]} 12. 0-0-0 {[%emt 0:0:8]} 0-0 {[%emt 0:1:16]} 13. Be2 {[%emt 0:0:50]} f5 {[%emt 0:2:5]} 14. Qh3 {[%emt 0:0:53]} Qe7 {[%emt 0:0:0]} 15. Rhg1 {[%emt 0:0:50]} Rae8 {[%emt 0:0:36]} 16. Bxh5 {[%emt 0:0:0]} gxh5 {[%emt 0:0:4]} 17. Qf3 {[%emt 0:0:51]} Qf7 {[%emt 0:2:14]} 18. Ne2 {[%emt 0:0:5]} f4 {[%emt 0:0:19]} 19. exf4 {[%emt 0:0:26]} exf4 {[%emt 0:0:14]
} 20. Kb1 {[%emt 0:2:51]} Re4 {[%emt 0:0:7]} 21. c3 {[%emt 0:0:0]} c5 {[%emt 0:0:59]} 22. Ka1 {[%emt 0:0:40]} cxd4 {[%emt 0:0:2]} 23. cxd4 {[%emt 0:0:3]} Nb6 {[%emt 0:2:26]} 24. a3 {[%emt 0:3:45]} Nc4 {[%emt 0:0:14]
} 25. Nxf4 {[%emt 0:0:6]} Rxf4 {[%emt 0:0:24]} 26. Bxf4 {[%emt 0:0:2]
} Qxf4 {[%emt 0:0:1]} 27. Qxd5+ {[%emt 0:0:3]} Qf7 {[%emt 0:0:0]} 28. Qe4 {[%emt 0:1:14]} Qxf2 {[%emt 0:0:29]} 29. Qxb7 {[%emt 0:0:12]
} Ne3 {[%emt 0:0:6]} 30. Rc1 {[%emt 0:0:27]} Ng4 {[%emt 0:0:19]} 31. Rge1 {[%emt 0:1:16]
} Qxd4 {[%emt 0:0:31]} 32. Re7 {[%emt 0:0:1]} Be5 {[%emt 0:0:0]} 33. Ka2 {[%emt 0:0:38]} Ne3 {[%emt 0:0:12]} 34. Rc8 {[%emt 0:0:12]} Nd5 {[%emt 0:0:10]} 35. Ree8 {[%emt 0:0:21]} Bd6 {[%emt 0:0:10]} 36. Rxf8+ {[%emt 0:0:7]
} Bxf8 {[%emt 0:0:2]} 37. Qb3 {[%emt 0:0:9]} Kg7 {[%emt 0:0:0]} 38. Qb7+ {[%emt 0:0:3]} Be7 {[%emt 0:0:5]} 39. Rc2 {[%emt 0:0:21]} Qe4 {[%emt 0:0:6]} 40. Qb3 {[%emt 0:0:7]} Ne3 {[%emt 0:0:15]} 41. Rc7 {[%emt 0:0:7]
} Nf5 {[%emt 0:0:1]} 42. Rc8 {[%emt 0:0:9]} Kg6 {[%emt 0:0:0]} 43. Rc4 {[%emt 0:0:19]} Qe6 {[%emt 0:0:5]} 44. Qd3 {[%emt 0:0:7]} h6 {[%emt 0:0:8]} 45. gxh6 {[%emt 0:0:3]} Kxh6 {[%emt 0:0:3]} 46. Ka1 {[%emt 0:0:3]
} Qe1+ 47. Ka2 Qe6 {[%emt 0:0:5]} 48. Kb1 {[%emt 0:0:1]} Bxh4 {[%emt 0:0:16]} 49. Re4 {[%emt 0:0:13]} Qf6 {[%emt 0:0:23]} 50. Qd5 {[%emt 0:0:1]
} Ng7 {[%emt 0:0:4]} 51. Rc4 {[%emt 0:0:9]} Qf1+ {[%emt 0:0:0]} 52. Ka2 {[%emt 0:0:2]} Qf2 {[%emt 0:0:1]} 53. Qd3 {[%emt 0:0:53]} Bf6 {[%emt 0:0:14]} 54. Rc2 {[%emt 0:0:1]} Qf4 {[%emt 0:0:9]} 55. Rg2 {[%emt 0:0:10]
} Qf5 {[%emt 0:0:7]} 56. Qd2+ {[%emt 0:0:16]} Kh7 {[%emt 0:0:0]} 57. Rf2 {[%emt 0:0:6]} Qe6+ {[%emt 0:0:2]} 58. Ka1 {[%emt 0:0:1]} h4 {[%emt 0:0:2]} 59. Qf4 {[%emt 0:0:14]} Nh5 {[%emt 0:0:14]} 60. Qf3 {[%emt 0:0:2]
} Kg6 {[%emt 0:0:30]} 61. Qd3+ {[%emt 0:0:6]} Kh6 {[%emt 0:0:0]} 62. Re2 {[%emt 0:0:16]} Qg4 {[%emt 0:0:6]} 63. Qd2+ {[%emt 0:0:8]} Qf4 {[%emt 0:0:4]} 64. Qe1 {[%emt 0:0:13]} h3 {[%emt 0:0:9]} 65. Rf2 {[%emt 0:0:1]
} Qe5 {[%emt 0:0:30]} 66. Qc1+ {[%emt 0:0:26]} Kg7 {[%emt 0:0:0]} 67. Qh1 {[%emt 0:0:18]} Qg3 {[%emt 0:0:6]} 68. Rh2 {[%emt 0:0:18]} Qxa3+ {[%emt 0:0:5]} 69. Kb1 {[%emt 0:0:0]} Qd3+ {[%emt 0:0:4]} 70. Ka1 {[%emt 0:0:1]
} Nf4 {[%emt 0:0:4]} 71. Qg1+ {[%emt 0:0:6]} Kh6 {[%emt 0:0:0]} 72. Qxa7 {[%emt 0:0:14]} Ne2 {[%emt 0:0:27]} 73. Qb6 {[%emt 0:0:19]} Kg6 {[%emt 0:0:18]} 74. Rf2 {[%emt 0:0:11]} Qd1+ {[%emt 0:0:29]} 75. Ka2 {[%emt 0:0:1]
} Qa4+ {[%emt 0:0:1]} 76. Kb1 {[%emt 0:0:1]} Qe4+ {[%emt 0:0:0]} 77. Ka1 {[%emt 0:0:10]} Qe5 {[%emt 0:0:2]} 78. Qa6 {[%emt 0:0:32]} Qxb2# 0-1

[Event "FIDE World Rapid-ch Open 2018"]
[White "Tari, Aryan"]
[Black "Adly, Ahmed"]
[Site "St. Petersburg"]
[Round "11.44"]
[Annotator "ChessBase"]
[Result "1-0"]
[Date "2018.12.28"]
[WhiteElo "2620"]
[BlackElo "2626"]
[PlyCount "83"]
[TimeControl "900+10"]

1. e4 {[%emt 0:0:0]} c5 {[%emt 0:0:0]} 2. Nf3 {[%emt 0:0:0]} d6 {[%emt 0:0:0]} 3. Nc3 {[%emt 0:0:3]} Nc6 {[%emt 0:0:7]} 4. d4 {[%emt 0:0:4]} cxd4 {[%emt 0:0:3]} 5. Nxd4 {[%emt 0:0:2]} Bd7 {[%emt 0:0:7]} 6. g3 {[%emt 0:0:55]
} g6 {[%emt 0:0:16]} 7. Bg2 {[%emt 0:0:31]} Bg7 {[%emt 0:0:1]
} 8. Nb3 {[%emt 0:0:28]} Nf6 {[%emt 0:0:59]} 9. 0-0 {[%emt 0:0:2]} 0-0 {[%emt 0:0:6]
} 10. h3 {[%emt 0:0:21]} a5 {[%emt 0:0:53]} 11. a4 {[%emt 0:0:0]} Nb4 {[%emt 0:0:9]} 12. Be3 {[%emt 0:0:38]} Rc8 {[%emt 0:0:25]} 13. Qd2 {[%emt 0:1:11]} Rc4 {[%emt 0:0:22]} 14. Rfe1 {[%emt 0:0:49]} Qc7 {[%emt 0:0:0]} 15. Nd4 {[%emt 0:0:32]} Qc8 {[%emt 0:1:25]} 16. Kh2 {[%emt 0:0:12]} Rc5 {[%emt 0:1:47]} 17. g4 {[%emt 0:2:55]} Ne8 {[%emt 0:1:18]} 18. Nd5 {[%emt 0:1:18]
} Nxd5 {[%emt 0:0:2]} 19. exd5 {[%emt 0:0:2]} Nf6 {[%emt 0:0:0]} 20. Bh6 {[%emt 0:1:41]} Bxh6 {[%emt 0:1:18]} 21. Qxh6 {[%emt 0:0:2]
} Bxg4 {[%emt 0:0:2]} 22. Qg5 {[%emt 0:0:57]} Be6 {[%emt 0:0:45]} 23. Nb3 {[%emt 0:0:41]
} Rxd5 {[%emt 0:1:27]} 24. Bxd5 {[%emt 0:0:2]} Nxd5 {[%emt 0:0:0]} 25. Nd4 {[%emt 0:0:24]} f6 {[%emt 0:0:15]} 26. Qg3 {[%emt 0:0:23]} Bf7 {[%emt 0:0:10]} 27. Rad1 {[%emt 0:0:3]} e5 {[%emt 0:1:19]} 28. Nb5 {[%emt 0:0:1]
} Qxc2 {[%emt 0:0:2]} 29. Nxd6 {[%emt 0:0:24]} Be6 {[%emt 0:0:0]} 30. Qf3 {[%emt 0:1:35]} Nf4 {[%emt 0:0:48]} 31. Nxb7 {[%emt 0:0:13]} Nxh3 {[%emt 0:0:37]} 32. Rd8 {[%emt 0:1:25]} Nf4 {[%emt 0:0:50]} 33. Rxf8+ {[%emt 0:0:31]
} Kxf8 {[%emt 0:0:2]} 34. Rd1 {[%emt 0:0:55]} g5 {[%emt 0:0:0]} 35. Rd6 {[%emt 0:0:45]} Ke7 {[%emt 0:0:54]} 36. Rc6 {[%emt 0:0:6]} Qxb2 {[%emt 0:0:10]} 37. Rc7+ {[%emt 0:0:1]} Kf8 {[%emt 0:0:1]} 38. Qe3 {[%emt 0:0:22]
} Kg8 {[%emt 0:0:45]} 39. Qa7 {[%emt 0:0:4]} Ng6 {[%emt 0:0:0]} 40. Nd8 {[%emt 0:0:10]} Qb3 {[%emt 0:0:23]} 41. Rxh7 {[%emt 0:0:3]} Bd7 42. Qxd7 {[%emt 0:0:3]} 1-0

[Event "FIDE World Rapid-ch Open 2018"]
[White "Amin, Bassem"]
[Black "Kazhgaleyev, Murtas"]
[Site "St. Petersburg"]
[Round "11.45"]
[Annotator "ChessBase"]
[Result "1-0"]
[Date "2018.12.28"]
[WhiteElo "2710"]
[BlackElo "2587"]
[PlyCount "111"]
[TimeControl "900+10"]

1. Nf3 {[%emt 0:0:0]} d6 {[%emt 0:0:0]} 2. e4 {[%emt 0:0:7]} e5 {[%emt 0:0:0]} 3. d4 {[%emt 0:0:6]} exd4 {[%emt 0:0:0]} 4. Nxd4 {[%emt 0:0:3]} Nf6 {[%emt 0:0:0]} 5. Nc3 {[%emt 0:0:4]} Be7 {[%emt 0:0:2]} 6. g3 {[%emt 0:0:8]
} Nc6 {[%emt 0:0:6]} 7. Bg2 {[%emt 0:0:7]} Nxd4 {[%emt 0:0:0]} 8. Qxd4 {[%emt 0:0:3]} 0-0 {[%emt 0:0:3]} 9. 0-0 {[%emt 0:0:37]} c6 {[%emt 0:0:2]
} 10. Bf4 {[%emt 0:0:28]} Qb6 {[%emt 0:1:33]} 11. Qxb6 {[%emt 0:1:59]
} axb6 {[%emt 0:0:2]} 12. a4 {[%emt 0:0:2]} Be6 {[%emt 0:0:0]} 13. Rad1 {[%emt 0:0:7]} Rfd8 {[%emt 0:0:3]} 14. Rd2 {[%emt 0:0:15]} Ng4 {[%emt 0:2:16]} 15. h3 {[%emt 0:0:50]} g5 {[%emt 0:1:5]} 16. hxg4 {[%emt 0:0:1]
} gxf4 {[%emt 0:0:2]} 17. gxf4 {[%emt 0:0:2]} Bxg4 {[%emt 0:0:0]} 18. f5 {[%emt 0:1:9]} f6 {[%emt 0:0:40]} 19. b3 {[%emt 0:0:59]} d5 {[%emt 0:1:9]} 20. exd5 {[%emt 0:1:16]} Bxf5 {[%emt 0:0:2]} 21. Re2 {[%emt 0:0:2]
} Bb4 {[%emt 0:0:5]} 22. Ne4 {[%emt 0:0:2]} Kf7 {[%emt 0:0:0]} 23. dxc6 {[%emt 0:0:25]} bxc6 {[%emt 0:0:2]} 24. Ng3 {[%emt 0:0:4]} Bd7 {[%emt 0:0:10]} 25. Re4 {[%emt 0:0:35]} Bf8 {[%emt 0:1:20]} 26. Bf3 {[%emt 0:1:44]
} f5 {[%emt 0:0:53]} 27. Rh4 {[%emt 0:0:12]} Kg6 {[%emt 0:0:0]} 28. Kg2 {[%emt 0:3:52]} Be7 {[%emt 0:0:43]} 29. Rd4 {[%emt 0:0:19]} Be6 {[%emt 0:2:15]} 30. Re1 {[%emt 0:1:0]} Kf7 {[%emt 0:0:13]} 31. Bxc6 {[%emt 0:0:45]
} Rac8 {[%emt 0:0:16]} 32. Rxd8 {[%emt 0:0:27]} Bxd8 {[%emt 0:0:0]} 33. Be8+ {[%emt 0:0:3]} Ke7 {[%emt 0:1:33]} 34. Nxf5+ {[%emt 0:0:0]} Kf6 {[%emt 0:0:1]} 35. Nd4 {[%emt 0:0:16]} Bd5+ {[%emt 0:0:5]} 36. f3 {[%emt 0:0:17]} Be7 {[%emt 0:0:3]} 37. Bd7 {[%emt 0:0:32]} Rg8+ {[%emt 0:0:0]} 38. Kh3 {[%emt 0:0:17]} Bd6 {[%emt 0:0:46]} 39. c4 {[%emt 0:0:22]} Bf7 {[%emt 0:0:24]} 40. Re4 {[%emt 0:0:45]} Rg3+ {[%emt 0:0:38]} 41. Kh4 {[%emt 0:0:0]
} Rg2 {[%emt 0:0:3]} 42. Bc8 {[%emt 0:0:49]} Bc5 {[%emt 0:0:0]} 43. Rf4+ {[%emt 0:0:14]} Kg6 {[%emt 0:0:27]} 44. Bf5+ {[%emt 0:0:21]} Kh6 {[%emt 0:0:19]} 45. Bg4 {[%emt 0:0:15]} Bg6 {[%emt 0:1:10]} 46. Nf5+ {[%emt 0:0:14]
} Bxf5 {[%emt 0:0:2]} 47. Rxf5 {[%emt 0:0:2]} Rb2 {[%emt 0:0:0]} 48. a5 {[%emt 0:0:24]} Be7+ {[%emt 0:0:2]} 49. Kg3 {[%emt 0:0:2]} Bd6+ {[%emt 0:0:1]} 50. f4 {[%emt 0:0:4]} Rxb3+ {[%emt 0:0:7]} 51. Bf3 {[%emt 0:0:5]
} Kg6 {[%emt 0:0:36]} 52. Rd5 {[%emt 0:0:4]} Be7 {[%emt 0:0:0]} 53. a6 {[%emt 0:0:6]} Ra3 {[%emt 0:0:5]} 54. Rd7 {[%emt 0:0:1]} Bb4 {[%emt 0:0:3]} 55. a7 {[%emt 0:0:3]} Be1+ {[%emt 0:0:1]} 56. Kg2 {[%emt 0:0:3]
} 1-0

[Event "FIDE World Rapid-ch Open 2018"]
[White "Melkumyan, Hrant"]
[Black "Khusnutdinov, Rustam"]
[Site "St. Petersburg"]
[Round "11.46"]
[Annotator "ChessBase"]
[Result "1-0"]
[Date "2018.12.28"]
[WhiteElo "2670"]
[BlackElo "2470"]
[PlyCount "99"]
[TimeControl "900+10"]

1. c4 {[%emt 0:0:0]} e5 {[%emt 0:0:0]} 2. Nc3 {[%emt 0:0:0]} Bb4 {[%emt 0:0:0]
} 3. Qc2 {[%emt 0:0:0]} Nf6 {[%emt 0:0:8]} 4. Nf3 {[%emt 0:0:0]} Qe7 {[%emt 0:1:59]} 5. e3 {[%emt 0:1:31]} Bxc3 {[%emt 0:0:4]} 6. Qxc3 {[%emt 0:0:7]} Nc6 {[%emt 0:0:2]} 7. d4 {[%emt 0:0:5]} Ne4 {[%emt 0:0:0]} 8. Qd3 {[%emt 0:0:2]} exd4 {[%emt 0:0:24]} 9. Nxd4 {[%emt 0:0:3]} Nxd4 {[%emt 0:0:17]} 10. Qxd4 {[%emt 0:0:15]} Qb4+ {[%emt 0:1:1]} 11. Ke2 {[%emt 0:0:42]
} Nf6 {[%emt 0:0:12]} 12. Qe5+ {[%emt 0:2:36]} Kd8 {[%emt 0:0:0]} 13. b3 {[%emt 0:0:29]} Re8 {[%emt 0:2:57]} 14. Qd4 {[%emt 0:0:7]} b6 {[%emt 0:0:30]
} 15. f3 {[%emt 0:0:37]} Qc5 {[%emt 0:3:18]} 16. Qxc5 {[%emt 0:0:0]} bxc5 {[%emt 0:0:1]} 17. Kf2 {[%emt 0:0:8]} a5 {[%emt 0:0:11]} 18. Bd3 {[%emt 0:0:13]} a4 {[%emt 0:0:14]} 19. Bb2 {[%emt 0:0:2]} Re6 {[%emt 0:0:0]} 20. g4 {[%emt 0:0:40]} Bb7 {[%emt 0:1:27]} 21. Rhd1 {[%emt 0:0:18]} Rb6 {[%emt 0:0:40]} 22. Bc2 {[%emt 0:0:5]} h6 {[%emt 0:0:8]} 23. h4 {[%emt 0:0:2]
} Ne8 {[%emt 0:0:9]} 24. g5 {[%emt 0:0:54]} h5 {[%emt 0:0:6]
} 25. Bc3 {[%emt 0:0:45]} Bc6 {[%emt 0:0:24]} 26. Rab1 {[%emt 0:1:12]} axb3 {[%emt 0:0:19]} 27. axb3 {[%emt 0:0:2]} Ra2 {[%emt 0:0:7]} 28. Rd2 {[%emt 0:0:36]
} g6 {[%emt 0:0:17]} 29. Rbd1 {[%emt 0:0:39]} Ra3 {[%emt 0:0:0]} 30. e4 {[%emt 0:1:15]} Kc8 {[%emt 0:0:10]} 31. Be5 {[%emt 0:0:31]} Raxb3 {[%emt 0:1:1]} 32. Bxb3 {[%emt 0:0:2]} Rxb3 {[%emt 0:0:1]} 33. Ra1 {[%emt 0:0:27]} Rb4 {[%emt 0:0:20]} 34. Rc2 {[%emt 0:0:30]} d6 {[%emt 0:0:0]} 35. Bh8 {[%emt 0:0:15]} Kd7 {[%emt 0:0:38]} 36. Ke3 {[%emt 0:0:16]} Rb3+ {[%emt 0:0:4]} 37. Kf4 {[%emt 0:0:7]} Rb4 {[%emt 0:0:4]} 38. Rac1 {[%emt 0:0:14]
} Rb3 {[%emt 0:0:7]} 39. Rb2 {[%emt 0:0:12]} Rd3 {[%emt 0:0:0]} 40. Rb8 {[%emt 0:0:12]} Ra3 {[%emt 0:0:21]} 41. Ra1 {[%emt 0:0:5]} Rd3 {[%emt 0:0:22]} 42. Ra6 {[%emt 0:0:3]} Rd1 {[%emt 0:0:32]} 43. Rxc6 {[%emt 0:0:17]
} Kxc6 {[%emt 0:0:1]} 44. Rxe8 {[%emt 0:0:2]} Kd7 {[%emt 0:0:0]} 45. Rf8 {[%emt 0:0:6]} Ke7 {[%emt 0:0:3]} 46. Ra8 {[%emt 0:0:9]} Rc1 {[%emt 0:0:15]} 47. Bf6+ {[%emt 0:0:2]} Kd7 {[%emt 0:0:2]} 48. Rf8 {[%emt 0:0:2]
} Rxc4 {[%emt 0:0:5]} 49. Rxf7+ {[%emt 0:0:2]} Kc6 {[%emt 0:0:0]} 50. Ke3 {[%emt 0:0:9] Kd5} 1-0

[Event "FIDE World Rapid-ch Open 2018"]
[White "Kovalenko, Igor"]
[Black "Sychev, Klementy"]
[Site "St. Petersburg"]
[Round "11.47"]
[Annotator "ChessBase"]
[Result "1-0"]
[Date "2018.12.28"]
[WhiteElo "2657"]
[BlackElo "2537"]
[PlyCount "93"]
[TimeControl "900+10"]

1. d4 {[%emt 0:0:0]} Nf6 {[%emt 0:0:0]} 2. Nf3 {[%emt 0:0:0]} g6 {[%emt 0:0:0]
} 3. Bf4 {[%emt 0:0:0]} Bg7 {[%emt 0:0:17]} 4. e3 {[%emt 0:0:0]} d6 {[%emt 0:0:12]} 5. h3 {[%emt 0:0:0]} 0-0 {[%emt 0:0:3]} 6. Be2 {[%emt 0:0:2]
} Nc6 {[%emt 0:1:56]} 7. Nc3 {[%emt 0:0:42]} Bf5 {[%emt 0:0:0]} 8. 0-0 {[%emt 0:0:42]} Ne4 {[%emt 0:0:4]} 9. Nxe4 {[%emt 0:0:6]} Bxe4 {[%emt 0:0:2]} 10. Bh2 {[%emt 0:0:14]} e5 {[%emt 0:0:36]} 11. c3 {[%emt 0:0:0]} Qe7 {[%emt 0:0:33]} 12. Re1 {[%emt 0:0:17]} Kh8 {[%emt 0:0:12]} 13. Qb3 {[%emt 0:1:33]} Rab8 {[%emt 0:1:33]} 14. Nd2 {[%emt 0:0:28]} Bf5 {[%emt 0:0:4]
} 15. d5 {[%emt 0:1:57]} Nd8 {[%emt 0:0:7]} 16. Qa3 {[%emt 0:0:0]} a6 {[%emt 0:0:12]} 17. c4 {[%emt 0:0:30]} Bd7 {[%emt 0:3:10]} 18. b4 {[%emt 0:0:30]} f5 {[%emt 0:0:11]} 19. c5 {[%emt 0:0:9]} Nf7 {[%emt 0:0:0]} 20. Rac1 {[%emt 0:0:13]} e4 {[%emt 0:3:23]} 21. Nc4 {[%emt 0:0:40]} Bb5 {[%emt 0:0:4]} 22. cxd6 {[%emt 0:2:3]} cxd6 {[%emt 0:0:2]} 23. Nb6 {[%emt 0:0:0]
} Qd8 {[%emt 0:0:53]} 24. Qa5 {[%emt 0:0:30]} Bxe2 {[%emt 0:0:0]} 25. Rxe2 {[%emt 0:0:1]} Be5 {[%emt 0:0:1]} 26. b5 {[%emt 0:6:37]} Bxh2+ {[%emt 0:0:15]} 27. Kxh2 {[%emt 0:0:1]} Ne5 {[%emt 0:0:0]} 28. Rc3 {[%emt 0:0:37]
} Qf6 {[%emt 0:1:4]} 29. Qb4 {[%emt 0:0:4]} axb5 {[%emt 0:0:0]} 30. Rec2 {[%emt 0:0:1]} Rbe8 {[%emt 0:0:25]} 31. Qxb5 {[%emt 0:0:5]} f4 {[%emt 0:0:24]} 32. Nd7 {[%emt 0:0:1]} Nxd7 {[%emt 0:0:34]} 33. Qxd7 {[%emt 0:0:1]
} Re7 {[%emt 0:0:0]} 34. Qg4 {[%emt 0:0:6]} f3 {[%emt 0:0:0]} 35. gxf3 {[%emt 0:1:22]} exf3 {[%emt 0:0:7]} 36. Rc8 {[%emt 0:0:5]} Rxc8 {[%emt 0:0:13]} 37. Rxc8+ {[%emt 0:0:1]} Kg7 {[%emt 0:0:0]} 38. Rc4 {[%emt 0:0:1]
} Qe5+ {[%emt 0:0:29]} 39. Qg3 {[%emt 0:0:28]} Qxd5 {[%emt 0:0:0]} 40. Rd4 {[%emt 0:0:0]} Qxa2 {[%emt 0:0:6]} 41. Rxd6 {[%emt 0:0:3]
} Qb2 {[%emt 0:0:44]} 42. h4 {[%emt 0:0:38]} b5 {[%emt 0:0:12]} 43. Rd4 {[%emt 0:0:31]
} b4 {[%emt 0:0:15]} 44. h5 {[%emt 0:0:1]} Qb3 {[%emt 0:0:39]
} 45. h6+ {[%emt 0:0:18]} Kf8 {[%emt 0:0:8]} 46. Rd8+ {[%emt 0:0:20]} Kf7 {[%emt 0:0:9]
} 47. Qf4+ {[%emt 0:0:2]} 1-0

[Event "FIDE World Rapid-ch Open 2018"]
[White "Ghaem Maghami, Ehsan"]
[Black "Najer, Evgeniy"]
[Site "St. Petersburg"]
[Round "11.48"]
[Annotator "ChessBase"]
[Result "1-0"]
[Date "2018.12.28"]
[WhiteElo "2537"]
[BlackElo "2670"]
[PlyCount "70"]
[TimeControl "900+10"]

1. d4 {[%emt 0:0:0]} d5 {[%emt 0:0:0]} 2. Nf3 {[%emt 0:0:0]} Nf6 {[%emt 0:0:0]
} 3. c4 {[%emt 0:0:0]} c6 {[%emt 0:0:0]} 4. e3 {[%emt 0:0:0]} Bg4 {[%emt 0:0:0]} 5. Nc3 {[%emt 0:0:11]} e6 {[%emt 0:0:0]} 6. h3 {[%emt 0:0:11]
} Bh5 {[%emt 0:0:0]} 7. g4 {[%emt 0:0:5]} Bg6 {[%emt 0:0:0]
} 8. Ne5 {[%emt 0:0:3]} Nbd7 {[%emt 0:0:0]} 9. Nxg6 {[%emt 0:0:6]} hxg6 {[%emt 0:0:0]
} 10. Bd2 {[%emt 0:0:17]} Bb4 {[%emt 0:0:1]} 11. Bd3 {[%emt 0:0:0]} Qe7 {[%emt 0:0:43]} 12. g5 {[%emt 0:1:7]} Nh7 {[%emt 0:4:36]} 13. f4 {[%emt 0:0:25]} 0-0-0 {[%emt 0:0:5]} 14. Qc2 {[%emt 0:1:37]} Kb8 {[%emt 0:0:16]
} 15. 0-0-0 {[%emt 0:0:25]} dxc4 {[%emt 0:0:47]} 16. Bxc4 {[%emt 0:0:3]
} c5 {[%emt 0:2:0]} 17. a3 {[%emt 0:1:36]} Ba5 {[%emt 0:3:4]
} 18. dxc5 {[%emt 0:1:39]} Qxc5 {[%emt 0:0:2]} 19. Be2 {[%emt 0:0:51]} Qc6 {[%emt 0:1:10]} 20. Kb1 {[%emt 0:0:27]} Nhf8 {[%emt 0:1:3]} 21. Qe4 {[%emt 0:2:22]
} e5 {[%emt 0:1:9]} 22. Qxc6 {[%emt 0:2:51]} bxc6 {[%emt 0:0:0]} 23. Bf3 {[%emt 0:0:3]} Rc8 {[%emt 0:0:3]} 24. Ne4 {[%emt 0:0:40]} Bxd2 {[%emt 0:0:16]} 25. Rxd2 {[%emt 0:0:3]} Rc7 {[%emt 0:0:2]} 26. Nd6 {[%emt 0:0:58]
} exf4 {[%emt 0:0:58]} 27. exf4 {[%emt 0:0:17]} Rh4 {[%emt 0:0:0]} 28. Re1 {[%emt 0:0:29]} Ne6 {[%emt 0:0:33]} 29. Ne8 {[%emt 0:0:53]} Rxf4 {[%emt 0:0:45]} 30. Nxc7 {[%emt 0:0:21]} Kxc7 {[%emt 0:0:1]} 31. Bg4 {[%emt 0:0:1]
} Ndc5 {[%emt 0:0:1]} 32. Rc2 {[%emt 0:0:53]} Nd3 {[%emt 0:0:0]} 33. Rd1 {[%emt 0:0:1]} Nf2 {[%emt 0:0:7]} 34. Rdc1 {[%emt 0:1:13]} Nd4 {[%emt 0:0:12]} 35. Rc4 {[%emt 0:0:0]} Ne6 1-0

[Event "FIDE World Rapid-ch Open 2018"]
[White "Baron, Tal"]
[Black "Demchenko, Anton"]
[Site "St. Petersburg"]
[Round "11.49"]
[Annotator "ChessBase"]
[Result "0-1"]
[Date "2018.12.28"]
[WhiteElo "2532"]
[BlackElo "2679"]
[PlyCount "60"]
[TimeControl "900+10"]

1. d4 {[%emt 0:0:0]} Nf6 {[%emt 0:0:0]} 2. c4 {[%emt 0:0:0]} d6 {[%emt 0:0:0]} 3. Nf3 {[%emt 0:1:5]} g6 {[%emt 0:0:0]} 4. Nc3 {[%emt 0:0:19]} Bg7 {[%emt 0:0:1]} 5. e4 {[%emt 0:0:5]} 0-0 {[%emt 0:0:2]} 6. Be2 {[%emt 0:0:0]} Na6 {[%emt 0:0:15]} 7. Be3 {[%emt 0:0:36]} e5 {[%emt 0:0:19]} 8. d5 {[%emt 0:1:23]} Ng4 {[%emt 0:1:6]} 9. Bg5 {[%emt 0:0:4]} f6 {[%emt 0:0:0]} 10. Bh4 {[%emt 0:0:26]} Nh6 {[%emt 0:0:16]} 11. Nd2 {[%emt 0:0:29]} Nf7 {[%emt 0:1:34]} 12. a3 {[%emt 0:0:57]} c6 {[%emt 0:0:29]} 13. f3 {[%emt 0:0:0]} Bh6 {[%emt 0:0:30]} 14. Bf2 {[%emt 0:0:41]} f5 {[%emt 0:1:32]} 15. b4 {[%emt 0:1:23]} c5 {[%emt 0:0:58]} 16. b5 {[%emt 0:2:50]} Nc7 {[%emt 0:0:0]} 17. a4 {[%emt 0:0:27]} Ne8 {[%emt 0:0:30]} 18. g4 {[%emt 0:0:48]} fxg4 {[%emt 0:0:45]} 19. fxg4 {[%emt 0:0:3]} Bf4 {[%emt 0:0:24]} 20. h4 {[%emt 0:0:19]
} a6 {[%emt 0:1:21]} 21. Nb3 {[%emt 0:0:57]} g5 {[%emt 0:0:25]
} 22. h5 {[%emt 0:0:15]} Nh6 {[%emt 0:0:8]} 23. Rg1 {[%emt 0:0:9]} Nf6 {[%emt 0:0:1]
} 24. bxa6 {[%emt 0:2:7]} bxa6 {[%emt 0:0:16]} 25. a5 {[%emt 0:0:3]
} Rb8 {[%emt 0:0:15]} 26. Nxc5 {[%emt 0:0:19]} dxc5 {[%emt 0:0:0]} 27. Bxc5 {[%emt 0:0:1]} Rb2 {[%emt 0:1:17]} 28. Bb6 {[%emt 0:0:48]} Rxb6 {[%emt 0:0:28]} 29. axb6 {[%emt 0:0:1]} Qxb6 {[%emt 0:0:1]} 30. Rg2 {[%emt 0:0:4]
} Qb4 {[%emt 0:0:39]} 0-1

[Event "FIDE World Rapid-ch Open 2018"]
[White "Potapov, Pavel"]
[Black "Esipenko, Andrey"]
[Site "St. Petersburg"]
[Round "11.50"]
[Annotator "ChessBase"]
[Result "1/2-1/2"]
[Date "2018.12.28"]
[WhiteElo "2516"]
[BlackElo "2593"]
[PlyCount "65"]
[TimeControl "900+10"]

1. e4 {[%emt 0:0:0]} e5 {[%emt 0:0:0]} 2. Nf3 {[%emt 0:0:2]} Nc6 {[%emt 0:0:0]
} 3. Nc3 {[%emt 0:0:9]} Nf6 {[%emt 0:0:0]} 4. d4 {[%emt 0:0:0]} exd4 {[%emt 0:0:3]} 5. Nxd4 {[%emt 0:0:2]} Bb4 {[%emt 0:0:6]} 6. Nxc6 {[%emt 0:0:3]} bxc6 {[%emt 0:0:2]} 7. Bd3 {[%emt 0:0:5]} d6 {[%emt 0:0:14]
} 8. 0-0 {[%emt 0:0:32]} Ng4 {[%emt 0:0:4]} 9. Qf3 {[%emt 0:0:0]} 0-0 {[%emt 0:0:57]} 10. Ne2 {[%emt 0:1:33]} Bc5 {[%emt 0:1:14]} 11. Qg3 {[%emt 0:0:59]} Kh8 {[%emt 0:1:18]} 12. Bd2 {[%emt 0:3:17]} Ne5 {[%emt 0:1:56]
} 13. Bc3 {[%emt 0:0:12]} f6 {[%emt 0:0:2]} 14. Kh1 {[%emt 0:0:0]} Rb8 {[%emt 0:2:4]} 15. b3 {[%emt 0:2:15]} Bb4 {[%emt 0:2:2]} 16. Bb2 {[%emt 0:0:11]} c5 {[%emt 0:1:50]} 17. f4 {[%emt 0:0:22]} Nxd3 {[%emt 0:0:0]} 18. cxd3 {[%emt 0:0:3]} d5 {[%emt 0:0:7]} 19. e5 {[%emt 0:1:43]} d4 {[%emt 0:0:4]} 20. Ng1 {[%emt 0:1:32]} Bf5 {[%emt 0:1:15]} 21. Rad1 {[%emt 0:0:8]
} a5 {[%emt 0:0:22]} 22. Nf3 {[%emt 0:0:25]} a4 {[%emt 0:0:4]
} 23. exf6 {[%emt 0:1:10]} gxf6 {[%emt 0:0:18]} 24. Nh4 {[%emt 0:0:14]} Qd7 {[%emt 0:0:3]} 25. Nxf5 {[%emt 0:0:34]} Qxf5 {[%emt 0:0:1]} 26. bxa4 {[%emt 0:0:41]
} Rfe8 {[%emt 0:0:49]} 27. Qf3 {[%emt 0:0:11]} Re3 {[%emt 0:0:0]} 28. Qc6 {[%emt 0:0:7]} Rg8 {[%emt 0:0:3]} 29. Rf2 {[%emt 0:0:37]} Be1 {[%emt 0:1:12]} 30. Rf1 {[%emt 0:0:13]} Bb4 {[%emt 0:0:20]} 31. Rf2 {[%emt 0:0:2]
} Re6 {[%emt 0:0:30]} 32. Qf3 {[%emt 0:0:6]} Re3 {[%emt 0:0:0]} 33. Qc6 1/2-1/2

[Event "FIDE World Rapid-ch Open 2018"]
[White "Piorun, Kacper"]
[Black "Popov, Ivan"]
[Site "St. Petersburg"]
[Round "11.51"]
[Annotator "ChessBase"]
[Result "1/2-1/2"]
[Date "2018.12.28"]
[WhiteElo "2634"]
[BlackElo "2592"]
[PlyCount "71"]
[TimeControl "900+10"]

1. c4 {[%emt 0:0:0]} Nf6 {[%emt 0:0:11]} 2. g3 {[%emt 0:0:0]} e6 {[%emt 0:0:0]} 3. Nf3 {[%emt 0:0:9]} d5 {[%emt 0:0:2]} 4. d4 {[%emt 0:0:26]} dxc4 {[%emt 0:0:14]} 5. Bg2 {[%emt 0:0:1]} Bd7 {[%emt 0:0:14]} 6. Ne5 {[%emt 0:0:0]} Bc6 {[%emt 0:0:2]} 7. Nxc6 {[%emt 0:0:2]} Nxc6 {[%emt 0:0:2]} 8. e3 {[%emt 0:0:5]} Qd7 {[%emt 0:0:2]} 9. 0-0 {[%emt 0:0:15]} Rd8 {[%emt 0:0:0]} 10. Qa4 {[%emt 0:0:41]} Nb4 {[%emt 0:1:51]} 11. Qxd7+ {[%emt 0:2:5]
} Rxd7 {[%emt 0:0:30]} 12. Na3 {[%emt 0:0:5]} c5 {[%emt 0:0:21]} 13. dxc5 {[%emt 0:0:30]
} Bxc5 {[%emt 0:0:8]} 14. Nxc4 {[%emt 0:0:2]} 0-0 {[%emt 0:0:0]} 15. Ne5 {[%emt 0:0:23]} Rc7 {[%emt 0:2:23]} 16. a3 {[%emt 0:0:41]} Nbd5 {[%emt 0:0:2]} 17. b4 {[%emt 0:3:8]} Bd6 {[%emt 0:1:56]} 18. Bb2 {[%emt 0:0:52]
} Nc3 {[%emt 0:0:35]} 19. Nd3 {[%emt 0:1:8]} b6 {[%emt 0:0:0]} 20. Rfe1 {[%emt 0:0:53]} Nd7 {[%emt 0:0:28]} 21. Rac1 {[%emt 0:1:11]} Rfc8 {[%emt 0:0:4]} 22. Rc2 {[%emt 0:1:25]} Ne5 {[%emt 0:1:19]} 23. Nxe5 {[%emt 0:0:10]
} Bxe5 {[%emt 0:0:2]} 24. Kf1 {[%emt 0:0:4]} Kf8 {[%emt 0:0:0]} 25. Rec1 {[%emt 0:0:55]} f5 {[%emt 0:1:15]} 26. f4 {[%emt 0:0:32]} Bf6 {[%emt 0:0:15]} 27. Ke1 {[%emt 0:1:20]} a5 {[%emt 0:1:1]} 28. Bf1 {[%emt 0:0:0]} axb4 {[%emt 0:0:27]} 29. axb4 {[%emt 0:0:8]} Nd5 {[%emt 0:1:28]} 30. Rxc7 {[%emt 0:0:26]} Rxc7 {[%emt 0:0:1]} 31. Rxc7 {[%emt 0:0:20]} Nxc7 {[%emt 0:0:1]} 32. Bxf6 {[%emt 0:0:59]} gxf6 {[%emt 0:0:1]} 33. Kd2 {[%emt 0:0:9]
} Ke7 {[%emt 0:0:19]} 34. Bc4 {[%emt 0:0:2]} Ne8 {[%emt 0:0:0]} 35. Bd3 {[%emt 0:0:15]} Nd6 {[%emt 0:0:4]} 36. Ke2 {[%emt 0:0:30]} 1/2-1/2